[Event "12th SRB-ch Women 2018"]
[Site "Kragujevac"]
[Date "2018.03.24"]
[Round "8"]
[White "Eric, Jovana"]
[Black "Injac, Teodora"]
[Result "1/2-1/2"]
[ECO "C07"]
[WhiteElo "2265"]
[BlackElo "2291"]
[Annotator "NA"]
[PlyCount "72"]
[EventDate "2018.??.??"]
[EventType "tourn"]
[EventCountry "SRB"]
[SourceTitle "playchess.com"]
[Source "ChessBase"]
[SourceQuality "1"]
[TimeControl "40/5400+30:1800+30"]

1. e4 {[%emt 0:00:00]} e6 {[%emt 0:00:16]} 2. d4 {[%emt 0:00:00]} d5 {[%emt 0:00:11]} 3. Nd2 {[%emt 0:00:01]} c5 {[%emt 0:03:12]} 4. exd5 {[%emt 0:01:17]} Qxd5 {[%emt 0:00:49]} 5. Ngf3 {[%emt 0:00:58]} cxd4 {[%emt 0:00:32]} 6. Bc4 {[%emt 0:00:33]} Qd6 {[%emt 0:02:12]} 7. O-O {[%emt 0:02:29]} Nf6 {[%emt 0:00:33]} 8. Nb3 {[%emt 0:00:20]} Nc6 {[%emt 0:01:03]} 9. Re1 {[%emt 0:01:18]} Be7 {[%emt 0:03:56]} 10. Nbxd4 {[%emt 0:02:19]} Nxd4 {[%emt 0:01:36]} 11. Nxd4 {[%emt 0:00:08]} a6 {[%emt 0:01:49]} 12. Bd3 {[%emt 0:06:36] C07: French Tarrasch: 3...c5, 4 Ngf3 and 4 exd5 Qxd5} (12. c3 Qc7 13. Bb3 O-O 14. Qf3 Bd6 15. Qh3 e5 16. Nf5 g6 17. Qh4 Bxf5 18. Qxf6 e4 19. Qh4 Rfe8 {½-½ (141) Sardana,R (2402)-Deepan Chakkravarthy,J (2475) New Delhi 2018}) 12... O-O {[%emt 0:03:49]} 13. c3 {[%emt 0:02:51]} b5 $146 {[%emt 0:04:52]} ({Predecessor:} 13... Rd8 14. Bc2 Qc7 15. Bg5 h6 16. Bh4 e5 17. Qd3 g6 18. Bb3 Kg7 19. Qe2 {1-0 (61) Krakovsky,P (1991)-Weiss,L (2010) ICCF email 2005}) 14. a4 {[%emt 0:14:46]} b4 {[%emt 0:07:11]} 15. Qf3 {[%emt 0:12:06]} Qd5 {[%emt 0:06:03]} 16. Qxd5 {[%emt 0:12:36]} Nxd5 {[%emt 0:00:09]} 17. c4 {[%emt 0:00:09]} Nf6 {[%emt 0:05:14]} 18. Bf4 {[%emt 0:02:26]} Bb7 {[%emt 0:05:17]} 19. Nf5 {[%emt 0:06:05]} Bc5 {[%emt 0:03:21]} 20. Bd6 {[%emt 0:03:53]} Bxd6 {[%emt 0:01:50]} 21. Nxd6 {[%emt 0:00:05]} Bc6 {[%emt 0:03:35]} 22. c5 {[%emt 0:04:12]} Nd7 {[%emt 0:02:33]} 23. Be4 {[%emt 0:02:48]} Bxe4 {[%emt 0:02:28]} 24. Nxe4 {[%emt 0:00:05]} Rac8 {[%emt 0:01:43]} 25. Rac1 {[%emt 0:01:53]} Rc7 {[%emt 0:02:25]} 26. b3 {[%emt 0:04:09]} Rfc8 {[%emt 0:01:20]} 27. Rc4 {[%emt 0:00:33]} Ne5 {[%emt 0:01:32]} 28. Rd4 {[%emt 0:02:28]} Nc6 {[%emt 0:00:40]} 29. Rd6 {[%emt 0:05:30]} Na5 {[%emt 0:01:16]} 30. Rxa6 {[%emt 0:01:33]} Nxb3 {[%emt 0:00:29]} 31. Rb6 {[%emt 0:01:27]} Nxc5 {[%emt 0:01:10]} 32. Nxc5 {[%emt 0:00:30]} Rxc5 {[%emt 0:00:18]} 33. Rxb4 {[%emt 0:00:05]} g6 {[%emt 0:00:17]} 34. h4 {[%emt 0:00:54]} Ra5 $11 {[%emt 0:00:44]} 35. g3 {[%emt 0:00:30]} Kg7 {[%emt 0:00:18]} 36. Ree4 {[%emt 0:00:31]} Rca8 {[%emt 0:01:22]} 1/2-1/2

[Event "12th SRB-ch Women 2018"]
[Site "Kragujevac"]
[Date "2018.03.24"]
[Round "8"]
[White "Blagojevic, Tijana"]
[Black "Benderac, Ana"]
[Result "1-0"]
[ECO "C47"]
[WhiteElo "2249"]
[BlackElo "2226"]
[Annotator "NA"]
[PlyCount "87"]
[EventDate "2018.??.??"]
[EventType "tourn"]
[EventCountry "SRB"]
[SourceTitle "playchess.com"]
[Source "ChessBase"]
[SourceQuality "1"]
[TimeControl "40/5400+30:1800+30"]

1. e4 {[%emt 0:00:00]} e5 {[%emt 0:00:12]} 2. Nf3 {[%emt 0:00:00]} Nc6 {[%emt 0:00:07]} 3. Nc3 {[%emt 0:00:02]} Nf6 {[%emt 0:00:15]} 4. d4 {[%emt 0:01:07]} exd4 {[%emt 0:00:13]} 5. Nxd4 {[%emt 0:00:10]} Bb4 {[%emt 0:00:19]} 6. Nxc6 {[%emt 0:00:19]} bxc6 {[%emt 0:00:07]} 7. Bd3 {[%emt 0:00:06]} d5 {[%emt 0:02:07]} 8. exd5 {[%emt 0:00:07]} cxd5 {[%emt 0:00:05]} 9. O-O {[%emt 0:00:15]} O-O {[%emt 0:00:05]} 10. h3 {[%emt 0:00:09] C47: Scotch Four Knights and Four Knights with 4 g3} (10. Bg5 c6 11. Na4 h6 12. Bh4 Re8 13. c4 dxc4 14. Bxc4 Qxd1 15. Rfxd1 g5 16. Bg3 Ne4 17. a3 Bf8 18. Rac1 Nxg3 19. hxg3 Rb8 20. b4 Bf5 21. Bd3 Bxd3 22. Rxd3 {½-½ (36) Artemiev,V (2691)-Carlsen,M (2837) Riadh 2017}) 10... Re8 {[%emt 0:01:34]} 11. Qf3 {[%emt 0:00:30]} c6 {[%emt 0:00:51]} 12. Bf4 {[%emt 0:01:09]} Be6 {[%emt 0:08:03]} 13. Ne2 {[%emt 0:01:18]} Bd6 {[%emt 0:02:05]} 14. Rfe1 {[%emt 0:12:48]} Rb8 {[%emt 0:17:15]} 15. b3 {[%emt 0:00:15]} c5 {[%emt 0:00:32]} 16. Bxd6 {[%emt 0:09:49]} Qxd6 {[%emt 0:00:16]} 17. Rad1 {[%emt 0:00:08]} Qc7 {[%emt 0:05:48]} 18. c3 $146 {[%emt 0:02:05]} Bd7 {[%emt 0:13:23]} 19. Ng3 {[%emt 0:07:03]} Re5 {[%emt 0:06:56]} 20. Rxe5 {[%emt 0:04:28]} Qxe5 {[%emt 0:00:06]} 21. Qe3 {[%emt 0:00:12]} Qc7 {[%emt 0:01:01]} 22. Be2 {[%emt 0:04:59]} Re8 {[%emt 0:05:18]} 23. Qd2 {[%emt 0:01:06]} a5 {[%emt 0:00:53]} 24. Bf3 {[%emt 0:03:46]} Be6 {[%emt 0:00:10]} 25. Ne2 {[%emt 0:00:31]} Rd8 {[%emt 0:02:36]} 26. Nf4 {[%emt 0:06:07]} Kf8 {[%emt 0:11:26]} 27. Re1 {[%emt 0:05:31]} Rd6 {[%emt 0:00:51]} 28. Re5 {[%emt 0:13:01]} Rb6 {[%emt 0:07:14]} ({Black should play} 28... c4 $14) 29. Qe3 {[%emt 0:05:11]} Rd6 {[%emt 0:12:50]} 30. Rxe6 {[%emt 0:01:39]} fxe6 {[%emt 0:00:30]} 31. Nxe6+ {[%emt 0:00:12]} Rxe6 {[%emt 0:00:03]} 32. Qxe6 {[%emt 0:00:04]} d4 {[%emt 0:00:25]} 33. Qc4 {[%emt 0:02:29]} Qe5 {[%emt 0:00:40]} 34. cxd4 {[%emt 0:01:17]} cxd4 {[%emt 0:00:03]} 35. Kf1 {[%emt 0:00:25]} Nd7 {[%emt 0:01:42]} 36. Qd5 {[%emt 0:01:53]} Qf4 {[%emt 0:01:14]} (36... Qxd5 $142 37. Bxd5 Ke7) 37. g3 {[%emt 0:01:49]} ({Weaker is} 37. Qxd7 Qc1+ 38. Ke2 Qc2+ 39. Ke1 Qc3+ 40. Kd1 Qd3+ 41. Ke1 Qc3+ 42. Kf1 Qc1+ 43. Ke2 Qc2+ 44. Ke1 Qc3+ $11) 37... Qf7 {[%emt 0:00:57]} 38. Qxd4 {[%emt 0:05:27]} Qxf3 {[%emt 0:00:11]} 39. Qxd7 $18 {[%emt 0:00:06]} Qh1+ {[%emt 0:00:12]} 40. Ke2 {[%emt 0:00:05]} Qe4+ {[%emt 0:30:02]} 41. Kd2 {[%emt 0:30:16]} Qe5 {[%emt 0:00:16]} 42. Qc8+ {[%emt 0:01:49]} Kf7 {[%emt 0:00:00]} 43. Qc4+ {[%emt 0:00:00]} Kg6 {[%emt 0:00:00]} 44. Qg4+ {[%emt 0:00:00]} 1-0

[Event "12th SRB-ch Women 2018"]
[Site "Kragujevac"]
[Date "2018.03.24"]
[Round "8"]
[White "Djukic, Sandra"]
[Black "Milosevic, Jovana"]
[Result "1/2-1/2"]
[ECO "D43"]
[WhiteElo "2174"]
[BlackElo "2109"]
[Annotator "RC"]
[PlyCount "187"]
[EventDate "2018.??.??"]
[EventType "tourn"]
[EventCountry "SRB"]
[SourceTitle "playchess.com"]
[Source "ChessBase"]
[SourceQuality "1"]
[TimeControl "40/5400+30:1800+30"]

1. d4 {[%emt 0:00:00]} d5 {[%emt 0:00:05]} 2. c4 {[%emt 0:00:00]} e6 {[%emt 0:00:05]} 3. Nc3 {[%emt 0:00:14]} Nf6 {[%emt 0:00:05]} 4. Nf3 {[%emt 0:00:10]} c6 {[%emt 0:00:10]} 5. Qb3 {[%emt 0:00:36]} Nbd7 {[%emt 0:02:22]} 6. Bg5 {[%emt 0:01:33]} Be7 {[%emt 0:00:11]} 7. e3 {[%emt 0:00:05]} O-O {[%emt 0:00:23]} 8. Qc2 {[%emt 0:10:19]} h6 {[%emt 0:05:24]} 9. Bh4 {[%emt 0:00:41]} dxc4 {[%emt 0:00:24]} 10. Bxc4 {[%emt 0:00:09]} b5 {[%emt 0:04:21]} 11. Be2 {[%emt 0:05:48]} Bb7 {[%emt 0:01:23]} 12. O-O {[%emt 0:00:04]} Rc8 {[%emt 0:22:25]} 13. Rfd1 {[%emt 0:02:16]} b4 {[%emt 0:06:35]} 14. Na4 {[%emt 0:21:20]} c5 {[%emt 0:09:30]} 15. dxc5 {[%emt 0:02:30]} Ne4 {[%emt 0:01:11]} 16. Ne5 {[%emt 0:42:36]} Bxh4 {[%emt 0:12:55]} 17. Rxd7 {[%emt 0:02:38]} Bxf2+ {[%emt 0:07:09]} 18. Kf1 {[%emt 0:00:02]} Qf6 {[%emt 0:01:40]} 19. Bf3 {[%emt 0:03:10]} Ba6+ {[%emt 0:02:52]} 20. Nc4 {[%emt 0:00:05]} Nxc5 {[%emt 0:04:57]} 21. Nxc5 {[%emt 0:00:22]} Rxc5 {[%emt 0:00:05]} 22. Qxf2 {[%emt 0:01:35]} Rxc4 {[%emt 0:01:58]} 23. Kg1 {[%emt 0:00:05]} Rfc8 {[%emt 0:00:22]} 24. Rad1 {[%emt 0:02:11]} R4c7 {[%emt 0:05:39]} 25. Rxc7 {[%emt 0:03:24]} Rxc7 {[%emt 0:00:05]} 26. Qd2 {[%emt 0:00:25]} Bb7 {[%emt 0:03:05]} 27. Bxb7 {[%emt 0:00:38]} Rxb7 {[%emt 0:00:06]} 28. Rc1 {[%emt 0:00:26]} Kh7 {[%emt 0:02:15]} 29. h3 {[%emt 0:00:31]} Qf5 {[%emt 0:04:13]} 30. Qd4 {[%emt 0:00:32]} e5 {[%emt 0:00:29]} 31. Qd5 {[%emt 0:00:07]} Rd7 {[%emt 0:00:20]} 32. Qc6 {[%emt 0:00:55]} Qd3 {[%emt 0:00:23]} 33. Qf3 {[%emt 0:00:22]} Rd6 {[%emt 0:01:12]} 34. Kh1 {[%emt 0:00:38]} Rf6 {[%emt 0:00:28]} 35. Qg3 {[%emt 0:00:03]} Qd2 {[%emt 0:01:32]} 36. Rb1 {[%emt 0:00:46]} Qc2 {[%emt 0:00:18]} 37. Qe1 {[%emt 0:00:35]} Rf2 {[%emt 0:00:36]} 38. Rc1 {[%emt 0:00:02]} Qxb2 {[%emt 0:00:38]} 39. Rb1 {[%emt 0:00:13]} Qd2 {[%emt 0:00:52]} 40. Qxd2 {[%emt 0:00:42]} Rxd2 {[%emt 0:30:04]} 41. Rxb4 {[%emt 0:30:06]} Rxa2 {[%emt 0:00:06]} 42. e4 {[%emt 0:01:28]} Kg6 {[%emt 0:00:00]} 43. Kh2 {[%emt 0:00:00]} f5 {[%emt 0:00:00]} 44. exf5+ {[%emt 0:00:00]} Kxf5 {[%emt 0:00:00]} 45. Kg3 {[%emt 0:00:00]} Ra3+ {[%emt 0:00:00]} 46. Kf2 {[%emt 0:00:00]} h5 {[%emt 0:00:00]} 47. h4 {[%emt 0:00:00]} a5 {[%emt 0:00:00]} 48. Rb8 {[%emt 0:00:00]} a4 {[%emt 0:00:00]} 49. Rf8+ {[%emt 0:00:00]} Ke4 {[%emt 0:00:00]} 50. Rf7 {[%emt 0:00:00]} Ra1 {[%emt 0:00:00]} 51. Rxg7 {[%emt 0:00:00]} a3 {[%emt 0:00:00]} 52. Ra7 {[%emt 0:00:00]} Ra2+ {[%emt 0:00:00]} 53. Kg3 {[%emt 0:00:00]} Ke3 {[%emt 0:00:00]} 54. Kh3 {[%emt 0:00:00]} Ra1 {[%emt 0:02:32]} 55. g4 {[%emt 0:00:00]} a2 {[%emt 0:00:23]} 56. Kg2 {[%emt 0:00:00]} hxg4 {[%emt 0:02:23]} 57. h5 {[%emt 0:00:00]} Kf4 {[%emt 0:02:51]} 58. h6 {[%emt 0:00:00]} Rd1 {[%emt 0:00:09]} 59. h7 {[%emt 0:00:00]} Rd2+ {[%emt 0:00:07]} 60. Kg1 {[%emt 0:00:00]} Rd8 {[%emt 0:01:48]} 61. Rxa2 {[%emt 0:00:00]} g3 {[%emt 0:00:56]} 62. Ra7 {[%emt 0:00:00]} Rf8 {[%emt 0:00:49]} 63. Rf7+ {[%emt 0:00:00]} Rxf7 {[%emt 0:00:10]} 64. h8=Q {[%emt 0:00:00]} Rf5 {[%emt 0:00:16]} 65. Kg2 {[%emt 0:00:00]} Rg5 {[%emt 0:00:35]} 66. Qf8+ {[%emt 0:00:00]} Rf5 {[%emt 0:00:46]} 67. Qa3 {[%emt 0:00:00]} Ke4 {[%emt 0:00:42]} 68. Kxg3 {[%emt 0:03:09]} Rf4 {[%emt 0:00:06]} 69. Qc5 {[%emt 0:00:43]} Kf5 {[%emt 0:00:15]} 70. Qe7 {[%emt 0:01:03]} Ke4 {[%emt 0:00:09]} 71. Qc5 {[%emt 0:00:57]} Kf5 {[%emt 0:00:06]} 72. Qd5 {[%emt 0:00:11]} Kf6 {[%emt 0:00:12]} 73. Qd7 {[%emt 0:01:20]} Rd4 {[%emt 0:00:43]} 74. Qc6+ {[%emt 0:00:06]} Kf5 {[%emt 0:00:13]} 75. Kf3 {[%emt 0:00:11]} Rd3+ {[%emt 0:00:30]} 76. Ke2 {[%emt 0:00:05]} e4 {[%emt 0:00:07]} 77. Qc7 {[%emt 0:02:36]} Rf3 {[%emt 0:00:21]} 78. Qh2 {[%emt 0:03:04]} Rd3 {[%emt 0:00:10]} 79. Qh5+ {[%emt 0:00:04]} Kf4 {[%emt 0:00:07]} 80. Qh6+ {[%emt 0:00:10]} Kf5 {[%emt 0:00:11]} 81. Qh7+ {[%emt 0:00:19]} Kf4 {[%emt 0:00:08]} 82. Qh6+ {[%emt 0:02:31]} Kf5 {[%emt 0:00:25]} 83. Qh7+ {[%emt 0:02:26]} Kf4 {[%emt 0:00:08]} 84. Qc7+ {[%emt 0:01:52]} Kf5 {[%emt 0:00:16]} 85. Qc5+ {[%emt 0:00:41]} Kf4 {[%emt 0:00:08]} 86. Qb6 {[%emt 0:00:24]} Ke5 {[%emt 0:00:10]} 87. Qa7 {[%emt 0:00:28]} Kd5 {[%emt 0:00:38]} 88. Qb8 {[%emt 0:00:15]} Rf3 {[%emt 0:00:12]} 89. Qb5+ {[%emt 0:00:52]} Kd4 {[%emt 0:00:09]} 90. Qb6+ {[%emt 0:00:33]} Kd5 {[%emt 0:00:09]} 91. Qd8+ {[%emt 0:00:24]} Ke5 {[%emt 0:00:20]} 92. Qe7+ {[%emt 0:00:13]} Kd5 {[%emt 0:00:07]} 93. Qb4 {[%emt 0:00:51]} Rd3 {[%emt 0:00:12]} 94. Qb7+ {[%emt 0:00:18]} 1/2-1/2

[Event "12th SRB-ch Women 2018"]
[Site "Kragujevac"]
[Date "2018.03.25"]
[Round "9"]
[White "Benderac, Ana"]
[Black "Velikic, Adela"]
[Result "1/2-1/2"]
[ECO "D04"]
[WhiteElo "2226"]
[BlackElo "2293"]
[Annotator "NA"]
[PlyCount "90"]
[EventDate "2018.??.??"]
[EventType "tourn"]
[EventCountry "SRB"]
[SourceTitle "playchess.com"]
[Source "ChessBase"]
[SourceQuality "1"]
[TimeControl "40/5400+30:1800+30"]

1. d4 {[%emt 0:00:00]} d5 {[%emt 0:00:04]} 2. Nf3 {[%emt 0:00:12]} Nf6 {[%emt 0:00:09]} 3. e3 {[%emt 0:01:14]} c6 {[%emt 0:00:07]} 4. c4 {[%emt 0:01:12]} e6 {[%emt 0:01:10] LiveBook: 5820 Games} 5. cxd5 {[%emt 0:00:27] D30: Queen's Gambit Declined: Systems without Nc3} (5. Bd3 g6 6. b3 Bg7 7. Ba3 Qa5+ 8. Qd2 Qxd2+ 9. Nbxd2 Bf8 10. Bxf8 Kxf8 11. Ke2 Nbd7 12. Rhc1 Kg7 13. b4 {½-½ (44) Topalov,V (2749)-Nakamura,H (2780) Saint Louis 2017}) 5... exd5 {[%emt 0:00:36]} 6. Bd3 {[%emt 0:00:24]} Bd6 {[%emt 0:01:53]} 7. O-O {[%emt 0:04:40]} Nbd7 {[%emt 0:06:20]} 8. b3 {[%emt 0:00:24]} O-O {[%emt 0:13:03]} 9. Ba3 {[%emt 0:01:59]} Bxa3 $146 {[%emt 0:04:31]} ({Predecessor:} 9... Qe7 10. Bxd6 Qxd6 11. Nc3 Re8 12. Qc2 Nf8 {0-1 (44) Mejsnar,M (1926)-Solovic,R (1838) Slovakia 2017}) 10. Nxa3 {[%emt 0:00:05]} Qe7 {[%emt 0:01:15]} 11. Nb1 {[%emt 0:00:44]} Ne4 {[%emt 0:12:32]} 12. Qc2 {[%emt 0:03:36]} Re8 {[%emt 0:15:05]} 13. Nc3 {[%emt 0:00:39]} Ndf6 {[%emt 0:05:52]} 14. Ne5 {[%emt 0:21:33]} Bf5 {[%emt 0:11:37]} 15. Rac1 {[%emt 0:19:53]} Nxc3 {[%emt 0:06:45]} 16. Qxc3 {[%emt 0:05:06]} Bxd3 {[%emt 0:00:04]} 17. Nxd3 {[%emt 0:03:13]} Ne4 {[%emt 0:00:16]} 18. Qb4 {[%emt 0:02:13]} Qxb4 {[%emt 0:04:13]} 19. Nxb4 {[%emt 0:00:06]} a5 {[%emt 0:01:36]} 20. Nd3 {[%emt 0:00:05]} a4 {[%emt 0:00:47]} 21. Nc5 {[%emt 0:01:33]} axb3 {[%emt 0:05:23]} 22. Nxe4 {[%emt 0:05:13]} b2 {[%emt 0:02:31]} 23. Rb1 $11 {[%emt 0:00:04]} Rxe4 {[%emt 0:00:52]} 24. Rxb2 {[%emt 0:00:04]} Re7 {[%emt 0:00:06]} 25. Rfb1 {[%emt 0:01:27]} b5 {[%emt 0:04:47]} 26. Rc2 {[%emt 0:01:14]} Re6 {[%emt 0:00:10]} 27. Rb4 {[%emt 0:01:19]} Kf8 {[%emt 0:01:32]} 28. a4 {[%emt 0:13:28]} Ke7 {[%emt 0:00:42]} 29. Kf1 {[%emt 0:00:42]} Rxa4 {[%emt 0:00:19]} 30. Rxa4 {[%emt 0:00:05]} bxa4 {[%emt 0:00:02]} 31. Ra2 {[%emt 0:00:36]} c5 {[%emt 0:00:41]} 32. Rxa4 {[%emt 0:01:34]} cxd4 {[%emt 0:00:53]} 33. Rxd4 {[%emt 0:00:12]} Kd6 {[%emt 0:00:15]} 34. Ra4 {[%emt 0:00:18]} Re7 {[%emt 0:00:26]} 35. Ke2 {[%emt 0:00:12]} Rb7 {[%emt 0:00:19]} 36. Ra2 {[%emt 0:00:56]} Rc7 {[%emt 0:00:51]} 37. Kd3 {[%emt 0:00:13]} Rb7 {[%emt 0:00:33]} 38. Ra6+ {[%emt 0:00:20]} Ke5 {[%emt 0:00:35]} 39. f4+ {[%emt 0:03:03]} Kf5 {[%emt 0:00:02]} 40. h3 {[%emt 0:00:19]} h5 {[%emt 0:30:46]} 41. Rd6 {[%emt 0:30:23]} Rb3+ {[%emt 0:00:00]} 42. Kd4 {[%emt 0:00:00]} Rb4+ {[%emt 0:00:00]} 43. Kc3 {[%emt 0:00:00]} Rb5 {[%emt 0:00:00]} 44. Kd4 {[%emt 0:00:00]} Rb4+ {[%emt 0:00:00]} 45. Kc3 {[%emt 0:00:00]} Rb5 {[%emt 0:00:00]} 1/2-1/2

[Event "12th SRB-ch Women 2018"]
[Site "Kragujevac"]
[Date "2018.03.25"]
[Round "9"]
[White "Zarkovic, Mila"]
[Black "Gajcin, Marina"]
[Result "1-0"]
[ECO "B92"]
[WhiteElo "2219"]
[BlackElo "2295"]
[Annotator "NA"]
[PlyCount "121"]
[EventDate "2018.??.??"]
[EventType "tourn"]
[EventCountry "SRB"]
[SourceTitle "playchess.com"]
[Source "ChessBase"]
[SourceQuality "1"]
[TimeControl "40/5400+30:1800+30"]

1. e4 {[%emt 0:00:00]} c5 {[%emt 0:00:04]} 2. Nf3 {[%emt 0:00:00]} d6 {[%emt 0:00:02]} 3. d4 {[%emt 0:00:00]} cxd4 {[%emt 0:00:04]} 4. Nxd4 {[%emt 0:01:21]} Nf6 {[%emt 0:00:05]} 5. Nc3 {[%emt 0:00:04]} a6 {[%emt 0:00:03]} 6. Be2 {[%emt 0:05:14]} e5 {[%emt 0:07:01]} 7. Nb3 {[%emt 0:00:04]} Be7 {[%emt 0:03:36]} 8. O-O {[%emt 0:00:06]} O-O {[%emt 0:01:28]} 9. Re1 {[%emt 0:08:15]} Be6 {[%emt 0:04:04] B92: Sicilian Najdorf: 6 Be2} 10. Bf3 {[%emt 0:00:03]} Nbd7 {[%emt 0:12:49]} 11. a4 {[%emt 0:00:35]} Rc8 {[%emt 0:02:02]} 12. Nd2 {[%emt 0:01:06]} Qa5 {[%emt 0:13:26]} 13. Nf1 {[%emt 0:01:09]} b5 {[%emt 0:01:46] LiveBook: 9 Games} 14. Ne3 {[%emt 0:13:34]} b4 {[%emt 0:09:41]} 15. Ncd5 {[%emt 0:00:17]} Bxd5 {[%emt 0:00:06]} 16. exd5 {[%emt 0:19:53]} g6 {[%emt 0:02:24]} 17. Bd2 {[%emt 0:03:03]} Ne8 $146 {[%emt 0:10:50]} 18. c3 {[%emt 0:04:10]} bxc3 {[%emt 0:00:05]} 19. Bxc3 {[%emt 0:00:20]} Qb6 {[%emt 0:00:16]} 20. a5 {[%emt 0:00:27]} Qb7 {[%emt 0:01:16]} 21. Ra4 {[%emt 0:04:17]} f5 {[%emt 0:04:19]} 22. Nc4 {[%emt 0:04:26]} Qc7 {[%emt 0:03:10]} (22... Nef6 $11) 23. Rb4 {[%emt 0:04:28]} Rb8 {[%emt 0:04:28]} 24. Rxb8 {[%emt 0:03:01]} Qxb8 {[%emt 0:00:01] [#]} 25. Qa4 $1 {[%emt 0:01:44]} Nef6 {[%emt 0:03:04]} 26. Qc6 $16 {[%emt 0:03:06]} e4 {[%emt 0:08:00]} 27. Be2 {[%emt 0:01:38]} Nc5 {[%emt 0:03:10]} 28. Nb6 {[%emt 0:00:03]} Bd8 {[%emt 0:04:31]} 29. Bxf6 {[%emt 0:08:42]} Bxf6 {[%emt 0:00:43]} 30. b4 {[%emt 0:00:07]} Nd3 {[%emt 0:00:33]} 31. Bxd3 exd3 32. Rd1 {[%emt 0:09:37]} Qe8 {[%emt 0:01:53]} 33. Qxd6 {[%emt 0:00:02]} Bc3 {[%emt 0:01:25]} 34. Qe6+ {[%emt 0:03:13]} Qxe6 {[%emt 0:00:04]} 35. dxe6 {[%emt 0:00:04]} Bxb4 {[%emt 0:00:17]} 36. Nd5 {[%emt 0:00:52]} Bxa5 {[%emt 0:00:32]} 37. e7 {[%emt 0:00:14]} Rc8 {[%emt 0:00:57]} 38. Nf6+ {[%emt 0:00:23]} Kf7 {[%emt 0:00:03]} 39. e8=Q+ {[%emt 0:00:06]} Rxe8 {[%emt 0:00:30]} 40. Nxe8 {[%emt 0:00:30]} Kxe8 {[%emt 0:30:30]} 41. Rxd3 {[%emt 0:30:30]} Bb4 {[%emt 0:00:30]} 42. Rh3 {[%emt 0:00:30]} h5 {[%emt 0:00:30]} 43. Rd3 {[%emt 0:00:00]} a5 {[%emt 0:00:00]} 44. h4 {[%emt 0:00:00]} Ke7 {[%emt 0:00:00]} 45. Kf1 {[%emt 0:00:00]} Bd6 {[%emt 0:00:00]} 46. Rd5 {[%emt 0:00:00]} a4 {[%emt 0:00:00]} 47. Ra5 {[%emt 0:00:00]} a3 {[%emt 0:00:00]} 48. Ke2 {[%emt 0:00:00]} Ke6 {[%emt 0:00:00]} 49. Ke3 {[%emt 0:00:00]} Bb4 {[%emt 0:00:00]} 50. Ra6+ {[%emt 0:00:00]} Kf7 {[%emt 0:00:00]} 51. g3 {[%emt 0:00:00]} Bc5+ {[%emt 0:00:00]} 52. Kf4 {[%emt 0:03:52]} Bb4 {[%emt 0:00:00]} 53. Kg5 {[%emt 0:02:08]} Be7+ {[%emt 0:05:22]} 54. Kh6 {[%emt 0:00:02]} Bf8+ {[%emt 0:01:10]} 55. Kh7 {[%emt 0:00:04]} Bc5 {[%emt 0:00:10]} 56. f4 {[%emt 0:00:40]} Be7 {[%emt 0:00:36]} 57. Ra7 {[%emt 0:01:21]} Kf6 {[%emt 0:00:27]} 58. Kg8 {[%emt 0:00:31]} Bb4 {[%emt 0:00:50]} 59. Ra6+ {[%emt 0:00:35]} Ke7 {[%emt 0:00:01]} 60. Kg7 {[%emt 0:00:15]} Be1 {[%emt 0:00:51]} 61. Rxa3 {[%emt 0:00:18]} 1-0